[Event "*** Titled Tuesday Blitz"]
[Site "Chess.com"]
[Date "2020.04.21"]
[Round "5"]
[White "AryanTari"]
[Black "artooon"]
[Result "0-1"]
[WhiteElo "2895"]
[BlackElo "2661"]
[TimeControl "180+1"]
[EndTime "10:57:32 PDT"]
[Termination "artooon won by resignation"]

1. c4 {[%clk 0:03:00.9]} 1... Nf6 {[%clk 0:02:59.6]} 2. Nc3 {[%clk 0:02:58.6]}
2... e6 {[%clk 0:02:59.5]} 3. Nf3 {[%clk 0:02:55.8]} 3... d5 {[%clk 0:02:59.3]}
4. e3 {[%clk 0:02:55.7]} 4... Nbd7 {[%clk 0:02:58.7]} 5. b3 {[%clk 0:02:54]}
5... b6 {[%clk 0:02:58.8]} 6. Bb2 {[%clk 0:02:54]} 6... Bb7 {[%clk 0:02:59.2]}
7. Be2 {[%clk 0:02:42.2]} 7... a6 {[%clk 0:02:59.5]} 8. Qc2 {[%clk 0:02:34.6]}
8... Bd6 {[%clk 0:02:59.8]} 9. g4 {[%clk 0:02:28.2]} 9... h6 {[%clk 0:02:54.9]}
10. Rg1 {[%clk 0:02:22.9]} 10... Ne4 {[%clk 0:02:39.9]} 11. d3 {[%clk
0:02:14.3]} 11... Ng5 {[%clk 0:02:04.3]} 12. h4 {[%clk 0:01:36.1]} 12... Nxf3+
{[%clk 0:02:04.1]} 13. Bxf3 {[%clk 0:01:37]} 13... Ne5 {[%clk 0:01:59.7]} 14.
Bg2 {[%clk 0:01:22.1]} 14... Qxh4 {[%clk 0:01:55]} 15. O-O-O {[%clk 0:01:21.1]}
15... c6 {[%clk 0:01:36.1]} 16. Rh1 {[%clk 0:00:43.6]} 16... Qe7 {[%clk
0:01:23.6]} 17. g5 {[%clk 0:00:40]} 17... dxc4 {[%clk 0:01:15.1]} 18. dxc4
{[%clk 0:00:36.4]} 18... O-O-O {[%clk 0:01:12.8]} 19. Ne4 {[%clk 0:00:35.8]}
19... Ba3 {[%clk 0:01:06.4]} 20. Qc3 {[%clk 0:00:28.4]} 20... Bxb2+ {[%clk
0:01:00.3]} 21. Kxb2 {[%clk 0:00:27.5]} 21... f6 {[%clk 0:01:00.6]} 22. f4
{[%clk 0:00:25.9]} 22... Ng4 {[%clk 0:00:56.5]} 23. c5 {[%clk 0:00:25]} 23...
bxc5 {[%clk 0:00:39.3]} 24. Nxc5 {[%clk 0:00:25.1]} 24... Nf2 {[%clk 0:00:39.6]}
25. Nxb7 {[%clk 0:00:14.3]} 25... Rxd1 {[%clk 0:00:31.1]} 26. Qxc6+ {[%clk
0:00:14.5]} 26... Qc7 {[%clk 0:00:29.8]} 27. Qxe6+ {[%clk 0:00:08.1]} 27... Kb8
{[%clk 0:00:27.8]} 28. Rxd1 {[%clk 0:00:08.6]} 28... Nxd1+ {[%clk 0:00:28.7]}
29. Kb1 {[%clk 0:00:07.6]} 29... Nc3+ {[%clk 0:00:27.9]} 30. Ka1 {[%clk
0:00:07.9]} 30... Nb5 {[%clk 0:00:16.5]} 31. Qc4 {[%clk 0:00:08]} 31... Qxc4
{[%clk 0:00:16]} 32. bxc4 {[%clk 0:00:08.9]} 32... Nc7 {[%clk 0:00:16.9]} 33. g6
{[%clk 0:00:08.3]} 33... h5 {[%clk 0:00:16.9]} 34. Nd6 {[%clk 0:00:08]} 34... h4
{[%clk 0:00:16.5]} 35. Nf7 {[%clk 0:00:07.6]} 35... h3 {[%clk 0:00:14.9]} 36.
Bh1 {[%clk 0:00:07.7]} 36... Rh4 {[%clk 0:00:14.6]} 37. Kb2 {[%clk 0:00:05.4]}
37... Rg4 {[%clk 0:00:14.8]} 38. f5 {[%clk 0:00:05]} 38... Rg1 {[%clk
0:00:14.7]} 39. Bc6 {[%clk 0:00:04.4]} 39... h2 {[%clk 0:00:15.6]} 40. c5 {[%clk
0:00:02.6]} 40... h1=Q {[%clk 0:00:15.8]} 41. Bxh1 {[%clk 0:00:03.2]} 41... Rxh1
{[%clk 0:00:16.7]} 42. e4 {[%clk 0:00:04.1]} 42... Re1 {[%clk 0:00:16.8]} 43.
Nd6 {[%clk 0:00:04.5]} 43... Nb5 {[%clk 0:00:14.9]} 44. Kb3 {[%clk 0:00:05]}
44... Nxd6 {[%clk 0:00:14.5]} 45. cxd6 {[%clk 0:00:05]} 45... Rxe4 {[%clk
0:00:15]} 0-1

[Event "*** Titled Tuesday Blitz"]
[Site "Chess.com"]
[Date "2020.04.21"]
[Round "5"]
[White "Willychess95"]
[Black "sergeikim"]
[Result "0-1"]
[WhiteElo "2572"]
[BlackElo "2431"]
[TimeControl "180+1"]
[EndTime "10:57:32 PDT"]
[Termination "sergeikim won on time"]

1. e4 {[%clk 0:03:00.5]} 1... e5 {[%clk 0:02:59.4]} 2. Nf3 {[%clk 0:03:00.4]}
2... Nc6 {[%clk 0:02:59.2]} 3. Bc4 {[%clk 0:03:00.8]} 3... Bc5 {[%clk
0:02:57.8]} 4. b4 {[%clk 0:03:00.8]} 4... Bxb4 {[%clk 0:02:56.4]} 5. c3 {[%clk
0:03:00.7]} 5... Ba5 {[%clk 0:02:57]} 6. d4 {[%clk 0:03:01]} 6... d6 {[%clk
0:02:56.9]} 7. Qb3 {[%clk 0:02:53.1]} 7... Qd7 {[%clk 0:02:56]} 8. dxe5 {[%clk
0:02:42.5]} 8... dxe5 {[%clk 0:02:55.4]} 9. O-O {[%clk 0:02:42.3]} 9... Bb6
{[%clk 0:02:54.7]} 10. Rd1 {[%clk 0:02:37.9]} 10... Qe7 {[%clk 0:02:54.5]} 11.
Ba3 {[%clk 0:02:36.5]} 11... Qf6 {[%clk 0:02:54.5]} 12. Bb5 {[%clk 0:02:14.6]}
12... Ne7 {[%clk 0:02:53]} 13. Nbd2 {[%clk 0:02:11.5]} 13... O-O {[%clk
0:02:50.4]} 14. h3 {[%clk 0:02:07.6]} 14... Re8 {[%clk 0:02:47.6]} 15. Bxe7
{[%clk 0:01:42.2]} 15... Qxe7 {[%clk 0:02:43.1]} 16. Nc4 {[%clk 0:01:40.9]}
16... Be6 {[%clk 0:02:23.7]} 17. Qc2 {[%clk 0:01:29.9]} 17... Bxc4 {[%clk
0:02:03.8]} 18. Bxc4 {[%clk 0:01:30.8]} 18... Rad8 {[%clk 0:01:58.4]} 19. Bb5
{[%clk 0:01:23.1]} 19... Qc5 {[%clk 0:01:54.3]} 20. a4 {[%clk 0:01:19.4]} 20...
a6 {[%clk 0:01:52.9]} 21. Bxc6 {[%clk 0:01:11.9]} 21... bxc6 {[%clk 0:01:46.9]}
22. Rd2 {[%clk 0:00:59.7]} 22... Rd6 {[%clk 0:01:37.5]} 23. Rad1 {[%clk
0:00:53.5]} 23... Red8 {[%clk 0:01:36.8]} 24. Kh2 {[%clk 0:00:53.2]} 24... h6
{[%clk 0:01:28]} 25. Kg3 {[%clk 0:00:52.9]} 25... a5 {[%clk 0:01:14.5]} 26. Nh4
{[%clk 0:00:47.1]} 26... g6 {[%clk 0:01:09.1]} 27. Nf3 {[%clk 0:00:43.8]} 27...
Kg7 {[%clk 0:01:07.7]} 28. Nh2 {[%clk 0:00:41]} 28... h5 {[%clk 0:01:06.5]} 29.
Nf3 {[%clk 0:00:40.7]} 29... R8d7 {[%clk 0:01:00.5]} 30. h4 {[%clk 0:00:40.7]}
30... f6 {[%clk 0:00:52.6]} 31. Kh2 {[%clk 0:00:33.4]} 31... Rxd2 {[%clk
0:00:39.6]} 32. Rxd2 {[%clk 0:00:34.3]} 32... Rd6 {[%clk 0:00:35.3]} 33. Kg3
{[%clk 0:00:32.7]} 33... Kf7 {[%clk 0:00:31.6]} 34. Qa2+ {[%clk 0:00:30.8]}
34... Kg7 {[%clk 0:00:29.3]} 35. Qc2 {[%clk 0:00:28]} 35... Kf7 {[%clk
0:00:28.3]} 36. Kh2 {[%clk 0:00:25.5]} 36... Kg7 {[%clk 0:00:27.9]} 37. Qc1
{[%clk 0:00:20.4]} 37... Rxd2 {[%clk 0:00:25.7]} 38. Qxd2 {[%clk 0:00:21.3]}
38... Qxf2 {[%clk 0:00:25.8]} 39. Qd7+ {[%clk 0:00:21.3]} 39... Kh6 {[%clk
0:00:23.5]} 40. Qxc6 {[%clk 0:00:19.6]} 40... Be3 {[%clk 0:00:19.6]} 41. Qc4
{[%clk 0:00:07.7]} 41... Bf4+ {[%clk 0:00:18.7]} 42. Kh1 {[%clk 0:00:00.1]}
42... Qe3 {[%clk 0:00:18.3]} 0-1

[Event "*** Titled Tuesday Blitz"]
[Site "Chess.com"]
[Date "2020.04.21"]
[Round "5"]
[White "Vamostodorecto"]
[Black "andy_rekt"]
[Result "1-0"]
[WhiteElo "2490"]
[BlackElo "2266"]
[TimeControl "180+1"]
[EndTime "10:57:32 PDT"]
[Termination "Vamostodorecto won on time"]

1. d4 {[%clk 0:03:00.9]} 1... e6 {[%clk 0:02:57.1]} 2. c4 {[%clk 0:03:00.5]}
2... Nf6 {[%clk 0:02:55.8]} 3. Nc3 {[%clk 0:02:59.6]} 3... Bb4 {[%clk
0:02:55.7]} 4. Nf3 {[%clk 0:02:59.9]} 4... O-O {[%clk 0:02:54.2]} 5. Bg5 {[%clk
0:02:59]} 5... h6 {[%clk 0:02:47.9]} 6. Bh4 {[%clk 0:02:58.2]} 6... g5 {[%clk
0:02:46.5]} 7. Bg3 {[%clk 0:02:57.2]} 7... c5 {[%clk 0:02:44.4]} 8. e3 {[%clk
0:02:54.4]} 8... Qa5 {[%clk 0:02:41.1]} 9. Qc2 {[%clk 0:02:52.6]} 9... Ne4
{[%clk 0:02:33.2]} 10. Rc1 {[%clk 0:02:48.6]} 10... Nxc3 {[%clk 0:02:24.1]} 11.
bxc3 {[%clk 0:02:47.4]} 11... Ba3 {[%clk 0:02:23.8]} 12. Rb1 {[%clk 0:02:46.1]}
12... cxd4 {[%clk 0:02:22.8]} 13. Nxd4 {[%clk 0:02:35.6]} 13... a6 {[%clk
0:02:04.7]} 14. h4 {[%clk 0:02:34.3]} 14... g4 {[%clk 0:01:55.3]} 15. f3 {[%clk
0:02:10.7]} 15... gxf3 {[%clk 0:01:50.6]} 16. gxf3 {[%clk 0:02:11.6]} 16... f5
{[%clk 0:01:41.8]} 17. Nb3 {[%clk 0:01:31.9]} 17... Qb6 {[%clk 0:01:30]} 18. c5
{[%clk 0:01:29.5]} 18... Bxc5 {[%clk 0:01:24.8]} 19. Be5 {[%clk 0:01:28.6]}
19... Bxe3 {[%clk 0:01:19.9]} 20. Qg2+ {[%clk 0:00:58.4]} 20... Kf7 {[%clk
0:01:16.4]} 21. Qg7+ {[%clk 0:00:58.8]} 21... Ke8 {[%clk 0:01:16.6]} 22. Qg6+
{[%clk 0:00:51.2]} 22... Kd8 {[%clk 0:00:52.7]} 23. Qg7 {[%clk 0:00:50.5]} 23...
Re8 {[%clk 0:00:33.2]} 24. Qf6+ {[%clk 0:00:35.7]} 24... Re7 {[%clk 0:00:23]}
25. Qf8+ {[%clk 0:00:34.2]} 25... Re8 {[%clk 0:00:22.9]} 26. Bf6+ {[%clk
0:00:34.4]} 26... Kc7 {[%clk 0:00:23.3]} 27. Qxe8 {[%clk 0:00:34.7]} 27... Bf2+
{[%clk 0:00:23.2]} 28. Kd1 {[%clk 0:00:34]} 28... Qe3 {[%clk 0:00:18.9]} 29.
Qd8+ {[%clk 0:00:31]} 29... Kc6 {[%clk 0:00:18.6]} 30. Qxc8+ {[%clk 0:00:30.8]}
30... Kd6 {[%clk 0:00:17.9]} 31. Qf8+ {[%clk 0:00:24.4]} 31... Kc7 {[%clk
0:00:15.8]} 32. Bd8+ {[%clk 0:00:21.7]} 32... Kc6 {[%clk 0:00:15.9]} 33. Nd4+
{[%clk 0:00:21.5]} 33... Kd5 {[%clk 0:00:15.6]} 34. Be2 {[%clk 0:00:15.4]} 34...
Nc6 {[%clk 0:00:11.2]} 35. Nxc6 {[%clk 0:00:14.4]} 35... Kxc6 {[%clk 0:00:10.5]}
36. Qb4 {[%clk 0:00:10.9]} 36... Rxd8 {[%clk 0:00:09.2]} 37. Qxb7+ {[%clk
0:00:10.1]} 37... Kd6 {[%clk 0:00:09.4]} 38. Qxa6+ {[%clk 0:00:09.5]} 38... Ke7
{[%clk 0:00:09.3]} 39. Qd3 {[%clk 0:00:09.8]} 39... Qc5 {[%clk 0:00:08]} 40. Qc4
{[%clk 0:00:07.7]} 40... Qe5 {[%clk 0:00:07.5]} 41. Kc2 {[%clk 0:00:07]} 41...
Rc8 {[%clk 0:00:05.7]} 42. Qd3 {[%clk 0:00:06.8]} 42... Bd4 {[%clk 0:00:04.4]}
43. Rb3 {[%clk 0:00:06.8]} 43... Qa5 {[%clk 0:00:01.3]} 44. Kb2 {[%clk
0:00:04.9]} 1-0

[Event "*** Titled Tuesday Blitz"]
[Site "Chess.com"]
[Date "2020.04.21"]
[Round "5"]
[White "secretsuperstar7"]
[Black "hellokostya"]
[Result "0-1"]
[WhiteElo "2196"]
[BlackElo "2480"]
[TimeControl "180+1"]
[EndTime "10:57:32 PDT"]
[Termination "hellokostya won on time"]

1. d4 {[%clk 0:03:00.9]} 1... Nf6 {[%clk 0:02:56]} 2. c4 {[%clk 0:02:59.6]} 2...
g6 {[%clk 0:02:56]} 3. Nc3 {[%clk 0:02:57.8]} 3... Bg7 {[%clk 0:02:56.4]} 4. e4
{[%clk 0:02:56.3]} 4... d6 {[%clk 0:02:56.1]} 5. Nf3 {[%clk 0:02:55.8]} 5... O-O
{[%clk 0:02:55.2]} 6. Be2 {[%clk 0:02:55.9]} 6... Na6 {[%clk 0:02:51.4]} 7. h3
{[%clk 0:02:47.1]} 7... c6 {[%clk 0:02:44]} 8. O-O {[%clk 0:02:43.1]} 8... e5
{[%clk 0:02:43.9]} 9. Bg5 {[%clk 0:02:36.2]} 9... h6 {[%clk 0:02:41.7]} 10. Be3
{[%clk 0:02:35.5]} 10... Qe8 {[%clk 0:02:28.8]} 11. Qc2 {[%clk 0:02:30.6]} 11...
exd4 {[%clk 0:02:24]} 12. Nxd4 {[%clk 0:02:29.2]} 12... Nc5 {[%clk 0:02:24.2]}
13. Bf3 {[%clk 0:02:21]} 13... a5 {[%clk 0:02:23.8]} 14. Bf4 {[%clk 0:02:17.4]}
14... Qe7 {[%clk 0:02:15.5]} 15. Qd2 {[%clk 0:02:08.4]} 15... Kh7 {[%clk
0:02:03.4]} 16. Rfe1 {[%clk 0:01:43.4]} 16... Nfd7 {[%clk 0:01:52.3]} 17. Rad1
{[%clk 0:01:27.1]} 17... Ne5 {[%clk 0:01:46.2]} 18. Be2 {[%clk 0:01:26]} 18...
a4 {[%clk 0:01:43.7]} 19. Be3 {[%clk 0:01:24]} 19... Ne6 {[%clk 0:00:31.5]} 20.
f4 {[%clk 0:01:14.1]} 20... Nxd4 {[%clk 0:00:17.6]} 21. Bxd4 {[%clk 0:01:12.7]}
21... Rd8 {[%clk 0:00:17.2]} 22. fxe5 {[%clk 0:01:08.4]} 22... dxe5 {[%clk
0:00:17.6]} 23. Nd5 {[%clk 0:00:49.5]} 23... cxd5 {[%clk 0:00:16.7]} 24. Bb6
{[%clk 0:00:48.4]} 24... Re8 {[%clk 0:00:09.5]} 25. exd5 {[%clk 0:00:47.4]}
25... e4 {[%clk 0:00:08.6]} 26. Qe3 {[%clk 0:00:42.9]} 26... f5 {[%clk
0:00:07.4]} 27. d6 {[%clk 0:00:41.1]} 27... Qd7 {[%clk 0:00:05.4]} 28. Bd4
{[%clk 0:00:37.3]} 28... Rd8 {[%clk 0:00:05.6]} 29. c5 {[%clk 0:00:35]} 29...
Qf7 {[%clk 0:00:03.9]} 30. Rf1 {[%clk 0:00:31.5]} 30... Be6 {[%clk 0:00:03.1]}
31. a3 {[%clk 0:00:24.8]} 31... Rac8 {[%clk 0:00:03.3]} 32. Kh2 {[%clk
0:00:19.3]} 32... Bxd4 {[%clk 0:00:03.2]} 33. Qxd4 {[%clk 0:00:18.6]} 33... Qg7
{[%clk 0:00:03.5]} 34. Qe3 {[%clk 0:00:17.4]} 34... Qe5+ {[%clk 0:00:03.3]} 35.
Kh1 {[%clk 0:00:15.3]} 35... Qxc5 {[%clk 0:00:03.6]} 36. Qf4 {[%clk 0:00:12.6]}
36... Qc2 {[%clk 0:00:03.1]} 37. Rfe1 {[%clk 0:00:11.2]} 37... Qc6 {[%clk
0:00:03.1]} 38. Qe5 {[%clk 0:00:10.8]} 38... Qe8 {[%clk 0:00:03.2]} 39. Qf6
{[%clk 0:00:08.9]} 39... Qf7 {[%clk 0:00:03.1]} 40. Qe5 {[%clk 0:00:08.7]} 40...
Rd7 {[%clk 0:00:02.8]} 41. Bb5 {[%clk 0:00:07.8]} 41... Rdd8 {[%clk 0:00:03.3]}
42. d7 {[%clk 0:00:06.5]} 42... Rc2 {[%clk 0:00:02.6]} 43. Rd6 {[%clk
0:00:03.7]} 43... Bb3 {[%clk 0:00:02.1]} 44. Rf6 {[%clk 0:00:03.3]} 44... Qg7
{[%clk 0:00:02.6]} 45. Qe6 {[%clk 0:00:02.9]} 45... Bxe6 {[%clk 0:00:02.4]} 46.
Rxe6 {[%clk 0:00:03.2]} 46... f4 {[%clk 0:00:03.3]} 47. Re8 {[%clk 0:00:03]}
47... Qf6 {[%clk 0:00:03.8]} 48. Rf1 {[%clk 0:00:02.1]} 48... f3 {[%clk
0:00:04]} 49. gxf3 {[%clk 0:00:01.6]} 49... Qh4 {[%clk 0:00:04.2]} 0-1

[Event "*** Titled Tuesday Blitz"]
[Site "Chess.com"]
[Date "2020.04.21"]
[Round "5"]
[White "RaunakSadhwani2005"]
[Black "lucasran"]
[Result "1/2-1/2"]
[WhiteElo "2773"]
[BlackElo "2618"]
[TimeControl "180+1"]
[EndTime "10:57:33 PDT"]
[Termination "Game drawn - insufficient material"]

1. e4 {[%clk 0:03:00.9]} 1... c6 {[%clk 0:02:59.8]} 2. Nf3 {[%clk 0:03:00.5]}
2... d5 {[%clk 0:03:00.7]} 3. d3 {[%clk 0:03:01.1]} 3... dxe4 {[%clk 0:03:00]}
4. dxe4 {[%clk 0:03:02]} 4... Qxd1+ {[%clk 0:03:00.2]} 5. Kxd1 {[%clk
0:03:02.9]} 5... Bg4 {[%clk 0:03:00.3]} 6. Nd2 {[%clk 0:02:58.9]} 6... Nd7
{[%clk 0:02:58.2]} 7. Be2 {[%clk 0:02:59.1]} 7... e5 {[%clk 0:02:55.7]} 8. a4
{[%clk 0:02:58.5]} 8... f6 {[%clk 0:02:47.9]} 9. Ne1 {[%clk 0:02:58.2]} 9...
Bxe2+ {[%clk 0:02:47.2]} 10. Kxe2 {[%clk 0:02:59.1]} 10... Bc5 {[%clk
0:02:36.8]} 11. Nd3 {[%clk 0:02:58.9]} 11... O-O-O {[%clk 0:02:25.5]} 12. Nc4
{[%clk 0:02:56.7]} 12... Kc7 {[%clk 0:01:59]} 13. f4 {[%clk 0:02:31.6]} 13...
Bd6 {[%clk 0:01:47.9]} 14. fxe5 {[%clk 0:02:24.2]} 14... Nxe5 {[%clk 0:01:47]}
15. Nxd6 {[%clk 0:02:19]} 15... Kxd6 {[%clk 0:01:43.8]} 16. Bf4 {[%clk
0:02:19.3]} 16... b6 {[%clk 0:01:39.8]} 17. Nxe5 {[%clk 0:02:02.9]} 17... fxe5
{[%clk 0:01:36.9]} 18. Rhd1+ {[%clk 0:02:01.7]} 18... Ke7 {[%clk 0:01:37]} 19.
Rxd8 {[%clk 0:01:59.1]} 19... Kxd8 {[%clk 0:01:37.9]} 20. Bxe5 {[%clk
0:01:59.6]} 20... Nf6 {[%clk 0:01:38.1]} 21. Bxf6+ {[%clk 0:01:55.7]} 21... gxf6
{[%clk 0:01:38]} 22. Rd1+ {[%clk 0:01:53.9]} 22... Ke7 {[%clk 0:01:36.4]} 23.
Kf3 {[%clk 0:01:54.3]} 23... Rg8 {[%clk 0:01:35.6]} 24. g3 {[%clk 0:01:53.6]}
24... Rg5 {[%clk 0:01:35.5]} 25. b3 {[%clk 0:01:42.1]} 25... Rc5 {[%clk
0:01:30.4]} 26. c4 {[%clk 0:01:41.4]} 26... a5 {[%clk 0:01:11.2]} 27. Kf4 {[%clk
0:01:27.5]} 27... Re5 {[%clk 0:00:56.8]} 28. h4 {[%clk 0:01:18.3]} 28... h6
{[%clk 0:00:39.2]} 29. g4 {[%clk 0:01:06.6]} 29... Rc5 {[%clk 0:00:38.3]} 30.
Rd3 {[%clk 0:00:56.7]} 30... Re5 {[%clk 0:00:38.1]} 31. Rg3 {[%clk 0:00:54.2]}
31... b5 {[%clk 0:00:37.6]} 32. cxb5 {[%clk 0:00:36.3]} 32... cxb5 {[%clk
0:00:37.6]} 33. g5 {[%clk 0:00:36.8]} 33... hxg5+ {[%clk 0:00:25.9]} 34. hxg5
{[%clk 0:00:36.5]} 34... bxa4 {[%clk 0:00:26]} 35. bxa4 {[%clk 0:00:33]} 35...
Rc5 {[%clk 0:00:22.2]} 36. gxf6+ {[%clk 0:00:13.8]} 36... Kxf6 {[%clk
0:00:22.3]} 37. Rb3 {[%clk 0:00:13.8]} 37... Rc4 {[%clk 0:00:21.4]} 38. Rb6+
{[%clk 0:00:14.4]} 38... Ke7 {[%clk 0:00:21.4]} 39. Kf5 {[%clk 0:00:15]} 39...
Rxa4 {[%clk 0:00:21.3]} 40. Rb7+ {[%clk 0:00:15.5]} 40... Kd8 {[%clk 0:00:20.3]}
41. e5 {[%clk 0:00:15.6]} 41... Rb4 {[%clk 0:00:20.4]} 42. Ra7 {[%clk
0:00:15.4]} 42... Rb6 {[%clk 0:00:16.3]} 43. e6 {[%clk 0:00:09.8]} 43... Rb1
{[%clk 0:00:15.8]} 44. Kf6 {[%clk 0:00:09.4]} 44... Rf1+ {[%clk 0:00:15.2]} 45.
Kg7 {[%clk 0:00:08.7]} 45... Ke8 {[%clk 0:00:14.3]} 46. Rxa5 {[%clk 0:00:08.6]}
46... Ke7 {[%clk 0:00:14.5]} 47. Ra6 {[%clk 0:00:08.2]} 47... Rf2 {[%clk
0:00:13.6]} 48. Kg6 {[%clk 0:00:08.2]} 48... Rf1 {[%clk 0:00:14]} 49. Kg5 {[%clk
0:00:08.7]} 49... Rf2 {[%clk 0:00:14.2]} 50. Kg4 {[%clk 0:00:09.2]} 50... Rf1
{[%clk 0:00:14.6]} 51. Kg3 {[%clk 0:00:09.7]} 51... Rf6 {[%clk 0:00:14.6]} 52.
Kg4 {[%clk 0:00:09.7]} 52... Rxe6 {[%clk 0:00:15.1]} 53. Rxe6+ {[%clk
0:00:10.3]} 53... Kxe6 {[%clk 0:00:15.6]} 1/2-1/2

[Event "*** Titled Tuesday Blitz"]
[Site "Chess.com"]
[Date "2020.04.21"]
[Round "5"]
[White "IMRosen"]
[Black "konradrutkowski"]
[Result "1-0"]
[WhiteElo "2476"]
[BlackElo "2189"]
[TimeControl "180+1"]
[EndTime "10:57:33 PDT"]
[Termination "IMRosen won on time"]

1. d4 {[%clk 0:03:00.9]} 1... Nf6 {[%clk 0:02:59.7]} 2. Bf4 {[%clk 0:03:01.1]}
2... d6 {[%clk 0:02:58.7]} 3. Nc3 {[%clk 0:03:01]} 3... g6 {[%clk 0:02:58.5]} 4.
e4 {[%clk 0:03:01.4]} 4... Bg7 {[%clk 0:02:58.4]} 5. Qd2 {[%clk 0:03:02.1]} 5...
O-O {[%clk 0:02:57.4]} 6. O-O-O {[%clk 0:03:02.7]} 6... Nbd7 {[%clk 0:02:53.6]}
7. Bh6 {[%clk 0:03:02]} 7... c5 {[%clk 0:02:53.4]} 8. dxc5 {[%clk 0:02:58.9]}
8... Nxc5 {[%clk 0:02:46.1]} 9. Bxg7 {[%clk 0:02:52.1]} 9... Kxg7 {[%clk
0:02:43.9]} 10. e5 {[%clk 0:02:52.7]} 10... Ng4 {[%clk 0:02:19.3]} 11. f4 {[%clk
0:02:33.5]} 11... Be6 {[%clk 0:01:44.7]} 12. h3 {[%clk 0:02:29.3]} 12... Nh6
{[%clk 0:01:44.1]} 13. exd6 {[%clk 0:02:29.1]} 13... Nf5 {[%clk 0:01:33.6]} 14.
g4 {[%clk 0:02:15.1]} 14... Ng3 {[%clk 0:01:27.2]} 15. Qd4+ {[%clk 0:02:06.6]}
15... Kg8 {[%clk 0:01:26.2]} 16. Qxc5 {[%clk 0:02:02]} 16... exd6 {[%clk
0:01:23.1]} 17. Qe3 {[%clk 0:01:31]} 17... Nxh1 {[%clk 0:01:19.5]} 18. Qf3
{[%clk 0:01:29.4]} 18... Rc8 {[%clk 0:01:10]} 19. Qxh1 {[%clk 0:01:22.3]} 19...
Rxc3 {[%clk 0:01:05]} 20. bxc3 {[%clk 0:01:20.7]} 20... Qa5 {[%clk 0:01:01.5]}
21. Qf3 {[%clk 0:01:04.1]} 21... Rc8 {[%clk 0:00:59.2]} 22. Ne2 {[%clk
0:01:00.4]} 22... Qxa2 {[%clk 0:00:51.6]} 23. Kd2 {[%clk 0:00:55]} 23... Bd5
{[%clk 0:00:43.7]} 24. Qe3 {[%clk 0:00:52.1]} 24... Bc6 {[%clk 0:00:36.2]} 25.
Nd4 {[%clk 0:00:51.1]} 25... Re8 {[%clk 0:00:35.7]} 26. Qf2 {[%clk 0:00:48.9]}
26... Bd5 {[%clk 0:00:31.7]} 27. Bd3 {[%clk 0:00:48.2]} 27... a6 {[%clk
0:00:29.1]} 28. Re1 {[%clk 0:00:48.3]} 28... Rc8 {[%clk 0:00:27.3]} 29. Qe3
{[%clk 0:00:41.8]} 29... b5 {[%clk 0:00:22.6]} 30. f5 {[%clk 0:00:36.9]} 30...
Qa3 {[%clk 0:00:21.1]} 31. Bf1 {[%clk 0:00:34.1]} 31... b4 {[%clk 0:00:20.2]}
32. f6 {[%clk 0:00:25.8]} 32... bxc3+ {[%clk 0:00:20.1]} 33. Ke2 {[%clk
0:00:22.5]} 33... Qc5 {[%clk 0:00:12.7]} 34. Kf2 {[%clk 0:00:08.7]} 34... Rf8
{[%clk 0:00:11.7]} 35. Rd1 {[%clk 0:00:07.3]} 35... Kh8 {[%clk 0:00:08.5]} 36.
Qh6 {[%clk 0:00:06.9]} 36... Rg8 {[%clk 0:00:08.5]} 37. Kg3 {[%clk 0:00:06.4]}
37... Bb7 {[%clk 0:00:05.9]} 38. Qe3 {[%clk 0:00:05.5]} 38... g5 {[%clk
0:00:05.5]} 39. Bd3 {[%clk 0:00:04.9]} 39... Qc7 {[%clk 0:00:03.2]} 40. Re1
{[%clk 0:00:05]} 40... d5+ {[%clk 0:00:04.1]} 41. Kg2 {[%clk 0:00:04.4]} 41...
Bc6 {[%clk 0:00:04.9]} 42. Qe7 {[%clk 0:00:03.8]} 42... Qb8 {[%clk 0:00:03.4]}
43. Qe5 {[%clk 0:00:04]} 43... Qb7 {[%clk 0:00:03]} 44. Qf5 {[%clk 0:00:03.7]}
44... Rg6 {[%clk 0:00:02.2]} 45. Re7 {[%clk 0:00:04.4]} 45... Qb8 {[%clk
0:00:01.4]} 46. Rxf7 {[%clk 0:00:04.6]} 1-0